[Event "Titled Tuesday Blitz March 21 Early 2023"]
[White "Semenova, Alina"]
[Black "Denishev, Marat"]
[WhiteFideId "24113875"]
[BlackFideId "24131563"]
[WhiteElo "1833"]
[BlackElo "2302"]
[Result "0-1"]
[Round "03"]
[TimeControl "180+2"]
[Date "2023.03.21"]
[WhiteClock "0:00:08"]
[BlackClock "0:01:26"]

1. e4 {[%clk 0:03:00]}  g6 {[%clk 0:02:55]} 2. d4 {[%clk 0:02:58]}  Bg7 {[%clk 0:02:55]} 3. Nc3 {[%clk 0:02:59]}  a6 {[%clk 0:02:55]} 4. f4 {[%clk 0:02:57]}  d6 {[%clk 0:02:55]} 5. Bc4 {[%clk 0:02:55]}  b5 {[%clk 0:02:54]} 6. Bb3 {[%clk 0:02:52]}  e6 {[%clk 0:02:54]} 7. Nf3 {[%clk 0:02:52]}  Bb7 {[%clk 0:02:53]} 8. a3 {[%clk 0:02:45]}  Nf6 {[%clk 0:02:52]} 9. Qe2 {[%clk 0:02:43]}  O-O {[%clk 0:02:50]} 10. O-O {[%clk 0:02:43]}  c5 {[%clk 0:02:51]} 11. dxc5 {[%clk 0:02:35]}  dxc5 {[%clk 0:02:51]} 12. e5 {[%clk 0:02:35]}  Nd5 {[%clk 0:02:48]} 13. Ne4 {[%clk 0:02:24]}  c4 {[%clk 0:02:46]} 14. Ba2 {[%clk 0:02:22]}  Nc6 {[%clk 0:02:40]} 15. Nd6 {[%clk 0:01:50]}  Rb8 {[%clk 0:02:40]} 16. c3 {[%clk 0:01:45]}  Ba8 {[%clk 0:02:33]} 17. Bb1 {[%clk 0:01:39]}  Na5 {[%clk 0:02:27]} 18. Nd4 {[%clk 0:01:06]}  Rb6 {[%clk 0:02:11]} 19. g4 {[%clk 0:01:01]}  Rxd6 {[%clk 0:02:09]} 20. exd6 {[%clk 0:01:01]}  Qxd6 {[%clk 0:02:10]} 21. f5 {[%clk 0:00:50]}  exf5 {[%clk 0:01:48]} 22. gxf5 {[%clk 0:00:47]}  Nxc3 {[%clk 0:01:30]} 23. bxc3 {[%clk 0:00:31]}  Bxd4+ {[%clk 0:01:29]} 24. cxd4 {[%clk 0:00:32]}  Qxd4+ {[%clk 0:01:30]} 25. Be3 {[%clk 0:00:19]}  Qxa1 {[%clk 0:01:29]} 26. fxg6 {[%clk 0:00:19]}  hxg6 {[%clk 0:01:26]} 27. Bxg6 {[%clk 0:00:05]}  Qg7 {[%clk 0:01:25]} 28. Qg4 {[%clk 0:00:02]}  Qxg6 {[%clk 0:01:24]} 29. Qxg6+ {[%clk 0:00:01]}  fxg6 {[%clk 0:01:24]} 30. Bc5 {[%clk 0:00:01]}  Rxf1+ {[%clk 0:01:24]} 31. Kxf1 {[%clk 0:00:02]}  Kf7 {[%clk 0:01:24]} 32. Kf2 {[%clk 0:00:02]}  Ke6 {[%clk 0:01:24]} 33. Bb4 {[%clk 0:00:03]}  Nc6 {[%clk 0:01:24]} 34. Bc5 {[%clk 0:00:02]}  a5 {[%clk 0:01:24]} 35. h4 {[%clk 0:00:02]}  Kd5 {[%clk 0:01:25]} 36. Bf8 {[%clk 0:00:02]}  b4 {[%clk 0:01:25]} 37. axb4 {[%clk 0:00:02]}  axb4 {[%clk 0:01:25]} 38. Ke3 {[%clk 0:00:03]}  c3 {[%clk 0:01:25]} 39. Bg7 {[%clk 0:00:04]}  Kc4 {[%clk 0:01:25]} 40. Kf4 {[%clk 0:00:04]}  b3 {[%clk 0:01:25]} 41. Kg5 {[%clk 0:00:04]}  b2 {[%clk 0:01:24]} 42. Bxc3 {[%clk 0:00:05]}  Kxc3 {[%clk 0:01:25]} 43. Kxg6 {[%clk 0:00:06]}  b1=Q+ {[%clk 0:01:26]} 44. Kg7 {[%clk 0:00:06]}  Qf5 {[%clk 0:01:25]} 45. h5 {[%clk 0:00:07]}  Ne7 {[%clk 0:01:25]} 46. h6 {[%clk 0:00:08]}  Bd5 {[%clk 0:01:25]} 47. Kh8 {[%clk 0:00:08]}  Qf8+ {[%clk 0:01:25]} 48. Kh7 {[%clk 0:00:08]}  Qg8# {[%clk 0:01:26]} 0-1


[Site "https://www.chess.com"]

[Event "Titled Tuesday Blitz March 21 Early 2023"]
[White "Prado, Alexandra"]
[Black "Derjabin, Ilja"]
[WhiteFideId "3301346"]
[BlackFideId "14104768"]
[WhiteElo "1759"]
[BlackElo "2309"]
[Result "0-1"]
[Round "03"]
[TimeControl "180+2"]
[Date "2023.03.21"]
[WhiteClock "0:00:01"]
[BlackClock "0:00:19"]

1. e4 {[%clk 0:03:00]}  c5 {[%clk 0:02:54]} 2. Nf3 {[%clk 0:02:57]}  d6 {[%clk 0:02:54]} 3. c3 {[%clk 0:02:56]}  Nf6 {[%clk 0:02:54]} 4. Be2 {[%clk 0:02:53]}  g6 {[%clk 0:02:51]} 5. O-O {[%clk 0:02:49]}  Bg7 {[%clk 0:02:51]} 6. Re1 {[%clk 0:02:46]}  O-O {[%clk 0:02:51]} 7. Bf1 {[%clk 0:02:45]}  a6 {[%clk 0:02:43]} 8. a4 {[%clk 0:02:44]}  Nc6 {[%clk 0:02:41]} 9. Na3 {[%clk 0:02:28]}  Bg4 {[%clk 0:02:38]} 10. h3 {[%clk 0:02:20]}  Bxf3 {[%clk 0:02:38]} 11. Qxf3 {[%clk 0:02:21]}  Nd7 {[%clk 0:02:35]} 12. Nc4 {[%clk 0:01:58]}  b5 {[%clk 0:02:28]} 13. axb5 {[%clk 0:01:51]}  axb5 {[%clk 0:02:29]} 14. Rxa8 {[%clk 0:01:50]}  Qxa8 {[%clk 0:02:29]} 15. Ne3 {[%clk 0:01:46]}  c4 {[%clk 0:02:29]} 16. d3 {[%clk 0:01:35]}  Nce5 {[%clk 0:02:15]} 17. Qd1 {[%clk 0:01:34]}  cxd3 {[%clk 0:02:08]} 18. Bxd3 {[%clk 0:01:33]}  Nxd3 {[%clk 0:02:08]} 19. Qxd3 {[%clk 0:01:34]}  Nc5 {[%clk 0:02:08]} 20. Qd5 {[%clk 0:01:24]}  Qxd5 {[%clk 0:01:51]} 21. exd5 {[%clk 0:01:01]}  Ra8 {[%clk 0:01:44]} 22. Nc2 {[%clk 0:00:53]}  Ra2 {[%clk 0:01:35]} 23. Rxe7 {[%clk 0:00:49]}  Bf6 {[%clk 0:01:29]} 24. Re8+ {[%clk 0:00:46]}  Kg7 {[%clk 0:01:29]} 25. Nb4 {[%clk 0:00:38]}  Ra1 {[%clk 0:01:27]} 26. Re1 {[%clk 0:00:35]}  Bg5 {[%clk 0:00:50]} 27. Bd2 {[%clk 0:00:28]}  Rxe1+ {[%clk 0:00:49]} 28. Bxe1 {[%clk 0:00:28]}  Bc1 {[%clk 0:00:50]} 29. Kf1 {[%clk 0:00:08]}  Bxb2 {[%clk 0:00:50]} 30. Ke2 {[%clk 0:00:07]}  Kf6 {[%clk 0:00:37]} 31. Bd2 {[%clk 0:00:06]}  Ke5 {[%clk 0:00:30]} 32. f4+ {[%clk 0:00:04]}  Ke4 {[%clk 0:00:28]} 33. g4 {[%clk 0:00:01]}  Na4 {[%clk 0:00:19]} 0-1


[Site "https://www.chess.com"]

[Event "Titled Tuesday Blitz March 21 Early 2023"]
[White "Grot, Blazej"]
[Black "Timofeev, Artyom"]
[WhiteFideId "21835845"]
[BlackFideId "4140419"]
[WhiteElo "1823"]
[BlackElo "2586"]
[Result "1/2-1/2"]
[Round "03"]
[TimeControl "180+2"]
[Date "2023.03.21"]
[WhiteClock "0:01:05"]
[BlackClock "0:01:01"]

1. e4 {[%clk 0:03:00]}  c5 {[%clk 0:02:59]} 2. Nf3 {[%clk 0:03:00]}  Nc6 {[%clk 0:02:58]} 3. Bb5 {[%clk 0:02:57]}  e6 {[%clk 0:02:57]} 4. O-O {[%clk 0:02:51]}  Nge7 {[%clk 0:02:57]} 5. Re1 {[%clk 0:02:46]}  a6 {[%clk 0:02:56]} 6. Bf1 {[%clk 0:02:47]}  d5 {[%clk 0:02:56]} 7. exd5 {[%clk 0:02:43]}  Qxd5 {[%clk 0:02:55]} 8. Nc3 {[%clk 0:02:36]}  Qd8 {[%clk 0:02:55]} 9. Ne4 {[%clk 0:02:33]}  Nf5 {[%clk 0:02:54]} 10. c3 {[%clk 0:02:29]}  Be7 {[%clk 0:02:53]} 11. d3 {[%clk 0:02:27]}  b6 {[%clk 0:02:51]} 12. a4 {[%clk 0:02:22]}  O-O {[%clk 0:02:50]} 13. g4 {[%clk 0:02:20]}  Nd6 {[%clk 0:02:49]} 14. Bf4 {[%clk 0:02:14]}  Bb7 {[%clk 0:02:47]} 15. Bg3 {[%clk 0:02:10]}  Qd7 {[%clk 0:02:42]} 16. Qb3 {[%clk 0:02:02]}  Nxe4 {[%clk 0:01:44]} 17. dxe4 {[%clk 0:01:58]}  Bd8 {[%clk 0:01:44]} 18. Rad1 {[%clk 0:01:54]}  Qc8 {[%clk 0:01:45]} 19. h3 {[%clk 0:01:54]}  Bc7 {[%clk 0:01:43]} 20. Bh4 {[%clk 0:01:50]}  Rb8 {[%clk 0:01:32]} 21. Qc2 {[%clk 0:01:49]}  Ne5 {[%clk 0:01:28]} 22. Nxe5 {[%clk 0:01:45]}  Bxe5 {[%clk 0:01:28]} 23. Be7 {[%clk 0:01:43]}  Re8 {[%clk 0:01:27]} 24. Bd6 {[%clk 0:01:44]}  Bxd6 {[%clk 0:01:27]} 25. Rxd6 {[%clk 0:01:45]}  Qc7 {[%clk 0:01:26]} 26. Red1 {[%clk 0:01:42]}  Red8 {[%clk 0:01:25]} 27. e5 {[%clk 0:01:37]}  Ba8 {[%clk 0:01:14]} 28. Bg2 {[%clk 0:01:31]}  Bxg2 {[%clk 0:01:09]} 29. Kxg2 {[%clk 0:01:32]}  Rxd6 {[%clk 0:01:09]} 30. Rxd6 {[%clk 0:01:30]}  Qb7+ {[%clk 0:01:09]} 31. f3 {[%clk 0:01:22]}  h6 {[%clk 0:01:05]} 32. h4 {[%clk 0:01:19]}  b5 {[%clk 0:01:04]} 33. a5 {[%clk 0:01:16]}  b4 {[%clk 0:01:03]} 34. Rb6 {[%clk 0:01:15]}  Qc8 {[%clk 0:01:02]} 35. cxb4 {[%clk 0:01:11]}  cxb4 {[%clk 0:01:02]} 36. Qxc8+ {[%clk 0:01:06]}  Rxc8 {[%clk 0:01:02]} 37. Rxb4 {[%clk 0:01:06]}  Rc5 {[%clk 0:01:01]} 38. f4 {[%clk 0:01:04]}  Rxa5 {[%clk 0:01:00]} 39. Rb8+ {[%clk 0:01:04]}  Kh7 {[%clk 0:01:00]} 40. Rb7 {[%clk 0:01:04]}  Kg8 {[%clk 0:01:00]} 41. Rb8+ {[%clk 0:01:04]}  Kh7 {[%clk 0:01:00]} 42. Rb7 {[%clk 0:01:05]}  Kg8 {[%clk 0:01:01]} 43. Rb8+ {[%clk 0:01:05]} 1/2-1/2


[Site "https://www.chess.com"]

[Event "Titled Tuesday Blitz March 21 Early 2023"]
[White "Silva, Caio Henrique Angelico"]
[Black "Jones, Gawain C B"]
[WhiteFideId "22777210"]
[BlackFideId "409561"]
[WhiteElo "2096"]
[BlackElo "2645"]
[Result "0-1"]
[Round "03"]
[TimeControl "180+2"]
[Date "2023.03.21"]
[WhiteClock "0:00:02"]
[BlackClock "0:00:05"]

1. d4 {[%clk 0:02:59]}  Nf6 {[%clk 0:02:59]} 2. Nf3 {[%clk 0:02:58]}  g6 {[%clk 0:02:59]} 3. g3 {[%clk 0:02:58]}  Bg7 {[%clk 0:02:59]} 4. Bg2 {[%clk 0:02:59]}  c5 {[%clk 0:03:00]} 5. O-O {[%clk 0:03:00]}  cxd4 {[%clk 0:03:00]} 6. Nxd4 {[%clk 0:03:00]}  h5 {[%clk 0:03:00]} 7. h4 {[%clk 0:02:55]}  d5 {[%clk 0:02:58]} 8. c4 {[%clk 0:02:55]}  dxc4 {[%clk 0:02:58]} 9. Nb5 {[%clk 0:02:44]}  Qb6 {[%clk 0:02:49]} 10. N1c3 {[%clk 0:02:41]}  O-O {[%clk 0:02:43]} 11. Be3 {[%clk 0:02:41]}  Qa5 {[%clk 0:02:43]} 12. Na3 {[%clk 0:02:37]}  Ng4 {[%clk 0:02:40]} 13. Bd2 {[%clk 0:02:27]}  Qa6 {[%clk 0:02:20]} 14. Qa4 {[%clk 0:02:11]}  Qxa4 {[%clk 0:02:08]} 15. Nxa4 {[%clk 0:02:11]}  Nd7 {[%clk 0:02:05]} 16. Nxc4 {[%clk 0:02:04]}  Rb8 {[%clk 0:02:04]} 17. Ne3 {[%clk 0:01:54]}  Nde5 {[%clk 0:01:49]} 18. Nxg4 {[%clk 0:01:53]}  Bxg4 {[%clk 0:01:48]} 19. Bc3 {[%clk 0:01:20]}  Rfc8 {[%clk 0:01:41]} 20. Bd4 {[%clk 0:01:07]}  Rc4 {[%clk 0:01:16]} 21. Bxe5 {[%clk 0:00:46]}  Bxe5 {[%clk 0:01:15]} 22. Nc3 {[%clk 0:00:47]}  Bxc3 {[%clk 0:01:14]} 23. bxc3 {[%clk 0:00:47]}  Rxc3 {[%clk 0:01:10]} 24. Rfc1 {[%clk 0:00:47]}  Rbc8 {[%clk 0:01:06]} 25. Rxc3 {[%clk 0:00:42]}  Rxc3 {[%clk 0:01:06]} 26. Bxb7 {[%clk 0:00:42]}  Bxe2 {[%clk 0:01:07]} 27. a4 {[%clk 0:00:39]}  a5 {[%clk 0:01:02]} 28. Re1 {[%clk 0:00:32]}  Rc2 {[%clk 0:01:02]} 29. Be4 {[%clk 0:00:29]}  Ra2 {[%clk 0:00:57]} 30. Bd5 {[%clk 0:00:25]}  Rb2 {[%clk 0:00:57]} 31. Bc6 {[%clk 0:00:21]}  e5 {[%clk 0:00:50]} 32. Kg2 {[%clk 0:00:16]}  Kg7 {[%clk 0:00:50]} 33. Rc1 {[%clk 0:00:12]}  Kf6 {[%clk 0:00:41]} 34. Rc5 {[%clk 0:00:11]}  Rb6 {[%clk 0:00:36]} 35. Bd5 {[%clk 0:00:08]}  Ra6 {[%clk 0:00:34]} 36. Rc7 {[%clk 0:00:08]}  e4 {[%clk 0:00:28]} 37. Bxe4 {[%clk 0:00:06]}  Ke5 {[%clk 0:00:25]} 38. Bf3 {[%clk 0:00:05]}  Bxf3+ {[%clk 0:00:24]} 39. Kxf3 {[%clk 0:00:06]}  f6 {[%clk 0:00:22]} 40. Rc5+ {[%clk 0:00:06]}  Kd4 {[%clk 0:00:22]} 41. Rb5 {[%clk 0:00:07]}  Kd3 {[%clk 0:00:18]} 42. Kf4 {[%clk 0:00:07]}  Ke2 {[%clk 0:00:17]} 43. f3 {[%clk 0:00:08]}  Rc6 {[%clk 0:00:14]} 44. g4 {[%clk 0:00:08]}  Rc4+ {[%clk 0:00:10]} 45. Kg3 {[%clk 0:00:06]}  hxg4 {[%clk 0:00:11]} 46. fxg4 {[%clk 0:00:07]}  Rxa4 {[%clk 0:00:11]} 47. h5 {[%clk 0:00:04]}  Ra3+ {[%clk 0:00:11]} 48. Kf4 {[%clk 0:00:04]}  Ra4+ {[%clk 0:00:10]} 49. Kg3 {[%clk 0:00:04]}  Ra3+ {[%clk 0:00:10]} 50. Kf4 {[%clk 0:00:04]}  gxh5 {[%clk 0:00:09]} 51. gxh5 {[%clk 0:00:05]}  a4 {[%clk 0:00:09]} 52. Kf5 {[%clk 0:00:05]}  Rf3+ {[%clk 0:00:09]} 53. Kg6 {[%clk 0:00:05]}  f5 {[%clk 0:00:08]} 54. h6 {[%clk 0:00:02]}  f4 {[%clk 0:00:06]} 55. h7 {[%clk 0:00:02]}  Rg3+ {[%clk 0:00:06]} 56. Kf5 {[%clk 0:00:01]}  Rh3 {[%clk 0:00:05]} 57. Kxf4 {[%clk 0:00:01]}  Rxh7 {[%clk 0:00:05]} 58. Ra5 {[%clk 0:00:02]}  Rh4+ {[%clk 0:00:04]} 59. Ke5 {[%clk 0:00:02]}  Rh5+ {[%clk 0:00:04]} 60. Kd4 {[%clk 0:00:02]}  Rxa5 {[%clk 0:00:05]} 0-1


[Site "https://www.chess.com"]

[Event "Titled Tuesday Blitz March 21 Early 2023"]
[White "Szyszylo, Rafal"]
[Black "Harshavardhan G B"]
[WhiteFideId "1109626"]
[BlackFideId "25059009"]
[WhiteElo "1951"]
[BlackElo "2323"]
[Result "0-1"]
[Round "03"]
[TimeControl "180+2"]
[Date "2023.03.21"]
[WhiteClock "0:00:09"]
[BlackClock "0:00:20"]

1. e4 {[%clk 0:02:56]}  e5 {[%clk 0:02:58]} 2. d4 {[%clk 0:02:54]}  exd4 {[%clk 0:02:57]} 3. c3 {[%clk 0:02:49]}  dxc3 {[%clk 0:02:56]} 4. Bc4 {[%clk 0:02:50]}  Nc6 {[%clk 0:02:53]} 5. Nxc3 {[%clk 0:02:49]}  Nf6 {[%clk 0:02:53]} 6. Nf3 {[%clk 0:02:47]}  Bb4 {[%clk 0:02:52]} 7. O-O {[%clk 0:02:45]}  Bxc3 {[%clk 0:02:50]} 8. bxc3 {[%clk 0:02:44]}  d6 {[%clk 0:02:49]} 9. Re1 {[%clk 0:02:31]}  O-O {[%clk 0:02:47]} 10. Rb1 {[%clk 0:02:21]}  Rb8 {[%clk 0:02:44]} 11. Bg5 {[%clk 0:02:17]}  h6 {[%clk 0:02:41]} 12. Bh4 {[%clk 0:02:17]}  Bg4 {[%clk 0:02:39]} 13. h3 {[%clk 0:02:16]}  Bxf3 {[%clk 0:02:36]} 14. Qxf3 {[%clk 0:02:17]}  Ne5 {[%clk 0:02:35]} 15. Qe2 {[%clk 0:02:13]}  Nxc4 {[%clk 0:02:22]} 16. Qxc4 {[%clk 0:02:14]}  Qe7 {[%clk 0:02:21]} 17. Qd4 {[%clk 0:01:57]}  c5 {[%clk 0:01:59]} 18. Qa4 {[%clk 0:01:48]}  b6 {[%clk 0:01:46]} 19. Rbd1 {[%clk 0:01:47]}  b5 {[%clk 0:01:34]} 20. Qa6 {[%clk 0:01:46]}  Rb6 {[%clk 0:01:33]} 21. Qa5 {[%clk 0:01:45]}  Rfb8 {[%clk 0:01:27]} 22. f4 {[%clk 0:01:37]}  Qe6 {[%clk 0:01:11]} 23. Qxa7 {[%clk 0:01:27]}  Nxe4 {[%clk 0:01:06]} 24. Rd3 {[%clk 0:01:15]}  f5 {[%clk 0:01:03]} 25. Red1 {[%clk 0:01:10]}  b4 {[%clk 0:01:01]} 26. cxb4 {[%clk 0:01:10]}  Rxb4 {[%clk 0:01:01]} 27. Kh2 {[%clk 0:00:57]}  Rb2 {[%clk 0:00:59]} 28. Qc7 {[%clk 0:00:35]}  Qg6 {[%clk 0:00:46]} 29. Rg1 {[%clk 0:00:30]}  Ra8 {[%clk 0:00:40]} 30. a3 {[%clk 0:00:22]}  Qf7 {[%clk 0:00:30]} 31. Qc6 {[%clk 0:00:22]}  Qb7 {[%clk 0:00:28]} 32. Qxb7 {[%clk 0:00:15]}  Rxb7 {[%clk 0:00:29]} 33. g4 {[%clk 0:00:14]}  Rb2+ {[%clk 0:00:27]} 34. Kh1 {[%clk 0:00:14]}  Rab8 {[%clk 0:00:20]} 35. gxf5 {[%clk 0:00:12]}  R8b3 {[%clk 0:00:21]} 36. f6 {[%clk 0:00:12]}  Rxd3 {[%clk 0:00:20]} 37. Rxg7+ {[%clk 0:00:11]}  Kf8 {[%clk 0:00:20]} 38. Rg1 {[%clk 0:00:09]}  Rxh3# {[%clk 0:00:20]} 0-1


[Site "https://www.chess.com"]

[Event "Titled Tuesday Blitz March 21 Early 2023"]
[White "Bodnaruk, Anastasia"]
[Black "Topalov, Aleksandar"]
[WhiteFideId "4181751"]
[BlackFideId "925659"]
[WhiteElo "2310"]
[BlackElo "2151"]
[Result "1-0"]
[Round "03"]
[TimeControl "180+2"]
[Date "2023.03.21"]
[WhiteClock "0:00:21"]
[BlackClock "0:00:07"]

1. e4 {[%clk 0:03:00]}  e6 {[%clk 0:02:59]} 2. d4 {[%clk 0:03:00]}  d5 {[%clk 0:03:00]} 3. e5 {[%clk 0:03:01]}  Ne7 {[%clk 0:02:59]} 4. Nf3 {[%clk 0:03:00]}  Qd7 {[%clk 0:03:00]} 5. c3 {[%clk 0:02:55]}  b6 {[%clk 0:03:00]} 6. a4 {[%clk 0:02:42]}  Ba6 {[%clk 0:02:59]} 7. Bxa6 {[%clk 0:02:39]}  Nxa6 {[%clk 0:03:00]} 8. a5 {[%clk 0:02:39]}  Nb8 {[%clk 0:02:59]} 9. O-O {[%clk 0:02:35]}  Nbc6 {[%clk 0:02:58]} 10. axb6 {[%clk 0:02:33]}  cxb6 {[%clk 0:02:58]} 11. b4 {[%clk 0:02:29]}  Rc8 {[%clk 0:02:57]} 12. Nbd2 {[%clk 0:02:22]}  a5 {[%clk 0:02:57]} 13. b5 {[%clk 0:01:54]}  Na7 {[%clk 0:02:57]} 14. c4 {[%clk 0:01:40]}  dxc4 {[%clk 0:02:53]} 15. Ne4 {[%clk 0:01:39]}  Nd5 {[%clk 0:02:53]} 16. Nfg5 {[%clk 0:01:34]}  h6 {[%clk 0:02:51]} 17. Qh5 {[%clk 0:01:31]}  Nxb5 {[%clk 0:02:18]} 18. f4 {[%clk 0:01:16]}  g6 {[%clk 0:02:18]} 19. Qh3 {[%clk 0:01:15]}  Nxd4 {[%clk 0:02:01]} 20. Rd1 {[%clk 0:01:15]}  Bc5 {[%clk 0:02:01]} 21. Kh1 {[%clk 0:01:03]}  Kf8 {[%clk 0:02:00]} 22. Bb2 {[%clk 0:00:38]}  c3 {[%clk 0:01:54]} 23. Nxc3 {[%clk 0:00:36]}  Nxc3 {[%clk 0:01:54]} 24. Bxc3 {[%clk 0:00:34]}  Qd5 {[%clk 0:01:49]} 25. Nf3 {[%clk 0:00:31]}  Nb5 {[%clk 0:00:13]} 26. Rxd5 {[%clk 0:00:30]}  Nxc3 {[%clk 0:00:13]} 27. Rd7 {[%clk 0:00:28]}  Ne2 {[%clk 0:00:12]} 28. Ng5 {[%clk 0:00:24]}  Be7 {[%clk 0:00:10]} 29. Nxe6+ {[%clk 0:00:20]}  fxe6 {[%clk 0:00:09]} 30. Qxe6 {[%clk 0:00:21]}  Re8 {[%clk 0:00:09]} 31. Rxe7 {[%clk 0:00:21]}  Rxe7 {[%clk 0:00:08]} 32. Qf6+ {[%clk 0:00:21]}  Ke8 {[%clk 0:00:07]} 33. Qxh8+ {[%clk 0:00:21]} 1-0


[Site "https://www.chess.com"]

[Event "Titled Tuesday Blitz March 21 Early 2023"]
[White "Borgaonkar Akshay"]
[Black "Meunier-Pion, Jean"]
[WhiteFideId "25639110"]
[BlackFideId "20685327"]
[WhiteElo "2063"]
[BlackElo "2124"]
[Result "1-0"]
[Round "03"]
[TimeControl "180+2"]
[Date "2023.03.21"]
[WhiteClock "0:00:19"]
[BlackClock "0:00:03"]

1. Nf3 {[%clk 0:03:00]}  Nf6 {[%clk 0:02:57]} 2. b3 {[%clk 0:03:01]}  e6 {[%clk 0:02:54]} 3. Bb2 {[%clk 0:03:02]}  c5 {[%clk 0:02:49]} 4. e3 {[%clk 0:03:01]}  b6 {[%clk 0:02:48]} 5. c4 {[%clk 0:03:01]}  Bb7 {[%clk 0:02:47]} 6. Nc3 {[%clk 0:03:01]}  d5 {[%clk 0:02:46]} 7. d4 {[%clk 0:03:01]}  cxd4 {[%clk 0:02:28]} 8. exd4 {[%clk 0:02:54]}  dxc4 {[%clk 0:02:29]} 9. Bxc4 {[%clk 0:02:50]}  Bb4 {[%clk 0:02:15]} 10. O-O {[%clk 0:02:49]}  O-O {[%clk 0:02:12]} 11. Ne5 {[%clk 0:02:48]}  Nc6 {[%clk 0:02:05]} 12. a3 {[%clk 0:02:43]}  Bd6 {[%clk 0:01:40]} 13. Ne2 {[%clk 0:02:40]}  Na5 {[%clk 0:01:31]} 14. Bd3 {[%clk 0:02:34]}  Qe7 {[%clk 0:01:24]} 15. Nf4 {[%clk 0:02:28]}  Rac8 {[%clk 0:01:20]} 16. Nh5 {[%clk 0:02:20]}  Rfd8 {[%clk 0:01:00]} 17. b4 {[%clk 0:02:12]}  Nc6 {[%clk 0:00:58]} 18. Nxf6+ {[%clk 0:02:07]}  Qxf6 {[%clk 0:00:53]} 19. Qe2 {[%clk 0:01:58]}  Qh4 {[%clk 0:00:33]} 20. Rae1 {[%clk 0:01:45]}  Nxd4 {[%clk 0:00:15]} 21. Qe3 {[%clk 0:01:18]}  Nf5 {[%clk 0:00:11]} 22. Bxf5 {[%clk 0:01:00]}  exf5 {[%clk 0:00:11]} 23. Qb3 {[%clk 0:01:00]}  Rf8 {[%clk 0:00:09]} 24. h3 {[%clk 0:00:53]}  Qg5 {[%clk 0:00:09]} 25. f3 {[%clk 0:00:47]}  Qf4 {[%clk 0:00:08]} 26. Qd3 {[%clk 0:00:35]}  Bb8 {[%clk 0:00:07]} 27. Qe3 {[%clk 0:00:31]}  Qg3 {[%clk 0:00:07]} 28. Qf2 {[%clk 0:00:25]}  Qf4 {[%clk 0:00:06]} 29. Qe3 {[%clk 0:00:18]}  Qg3 {[%clk 0:00:06]} 30. Qf2 {[%clk 0:00:18]}  Qg5 {[%clk 0:00:06]} 31. f4 {[%clk 0:00:17]}  Qd8 {[%clk 0:00:05]} 32. Rd1 {[%clk 0:00:17]}  Qe7 {[%clk 0:00:04]} 33. Qg3 {[%clk 0:00:17]}  f6 {[%clk 0:00:03]} 34. Rd7 {[%clk 0:00:16]}  Qxd7 {[%clk 0:00:02]} 35. Nxd7 {[%clk 0:00:16]}  Rf7 {[%clk 0:00:03]} 36. Nxf6+ {[%clk 0:00:17]}  Kf8 {[%clk 0:00:02]} 37. Nxh7+ {[%clk 0:00:17]}  Kg8 {[%clk 0:00:02]} 38. Ng5 {[%clk 0:00:18]}  Re7 {[%clk 0:00:02]} 39. Qh4 {[%clk 0:00:18]}  Rc2 {[%clk 0:00:02]} 40. Qh7+ {[%clk 0:00:18]}  Kf8 {[%clk 0:00:03]} 41. Qh8# {[%clk 0:00:19]} 1-0


[Site "https://www.chess.com"]

[Event "Titled Tuesday Blitz March 21 Early 2023"]
[White "Mackster23"]
[Black "Buscar, Michael"]
[BlackFideId "2603616"]
[WhiteElo "2533"]
[BlackElo "2010"]
[Result "1-0"]
[Round "03"]
[TimeControl "180+2"]
[Date "2023.03.21"]
[WhiteClock "0:00:11"]
[BlackClock "0:00:01"]

1. e4 {[%clk 0:02:57]}  c6 {[%clk 0:02:58]} 2. d4 {[%clk 0:02:56]}  d6 {[%clk 0:02:57]} 3. Nc3 {[%clk 0:02:55]}  Nf6 {[%clk 0:02:56]} 4. Be3 {[%clk 0:02:54]}  Qc7 {[%clk 0:02:55]} 5. Qd2 {[%clk 0:02:53]}  e5 {[%clk 0:02:55]} 6. h3 {[%clk 0:02:50]}  Be7 {[%clk 0:02:55]} 7. Nf3 {[%clk 0:02:50]}  Nbd7 {[%clk 0:02:53]} 8. a4 {[%clk 0:02:46]}  a5 {[%clk 0:02:52]} 9. Bc4 {[%clk 0:02:46]}  Nf8 {[%clk 0:02:51]} 10. O-O {[%clk 0:02:44]}  Ng6 {[%clk 0:02:50]} 11. Rfe1 {[%clk 0:02:31]}  O-O {[%clk 0:02:49]} 12. Ba2 {[%clk 0:02:22]}  Nh5 {[%clk 0:02:21]} 13. Ne2 {[%clk 0:02:07]}  Nh4 {[%clk 0:02:08]} 14. Nxh4 {[%clk 0:01:58]}  Bxh4 {[%clk 0:02:08]} 15. Bg5 {[%clk 0:01:46]}  Bxg5 {[%clk 0:01:39]} 16. Qxg5 {[%clk 0:01:47]}  Nf6 {[%clk 0:01:33]} 17. dxe5 {[%clk 0:01:03]}  dxe5 {[%clk 0:00:57]} 18. Ng3 {[%clk 0:01:01]}  h6 {[%clk 0:00:51]} 19. Qe3 {[%clk 0:00:59]}  Re8 {[%clk 0:00:18]} 20. Rad1 {[%clk 0:00:58]}  Be6 {[%clk 0:00:17]} 21. Bxe6 {[%clk 0:00:58]}  Rxe6 {[%clk 0:00:17]} 22. Nf5 {[%clk 0:00:58]}  Rd8 {[%clk 0:00:17]} 23. Qg3 {[%clk 0:00:57]}  Nh5 {[%clk 0:00:14]} 24. Qg4 {[%clk 0:00:50]}  Rxd1 {[%clk 0:00:13]} 25. Rxd1 {[%clk 0:00:49]}  g6 {[%clk 0:00:12]} 26. Nxh6+ {[%clk 0:00:45]}  Kh7 {[%clk 0:00:13]} 27. Nf5 {[%clk 0:00:42]}  Qb6 {[%clk 0:00:12]} 28. b3 {[%clk 0:00:32]}  Rf6 {[%clk 0:00:11]} 29. Ne3 {[%clk 0:00:30]}  Rf4 {[%clk 0:00:08]} 30. Qg5 {[%clk 0:00:29]}  Rxe4 {[%clk 0:00:08]} 31. Rd7 {[%clk 0:00:26]}  Kg7 {[%clk 0:00:08]} 32. Ng4 {[%clk 0:00:22]}  Rxg4 {[%clk 0:00:05]} 33. Qxe5+ {[%clk 0:00:18]}  Kh6 {[%clk 0:00:01]} 34. hxg4 {[%clk 0:00:19]}  Ng7 {[%clk 0:00:01]} 35. g5+ {[%clk 0:00:12]}  Kh5 {[%clk 0:00:01]} 36. Rd3 {[%clk 0:00:12]}  Nf5 {[%clk 0:00:01]} 37. Rh3+ {[%clk 0:00:12]}  Kxg5 {[%clk 0:00:01]} 38. Rg3+ {[%clk 0:00:11]}  Kh6 {[%clk 0:00:01]} 39. Qh8# {[%clk 0:00:11]} 1-0


[Site "https://www.chess.com"]